[Event "January 9 Early 2024"]
[Site "https://www.chess.com"]
[Date "2024.01.11"]
[Round "8"]
[White "Drozdowski, Kacper"]
[Black "Kiselev, Vitalii"]
[Result "1/2-1/2"]
[Board "193"]
[TimeControl "180+1"]
[WhiteFideId "1136720"]
[BlackFideId "4194128"]
[WhiteElo "2965"]
[BlackElo "2798"]
[WhiteTeam "POL"]
[BlackTeam "FID"]
[WhiteClock "0:00:22"]
[BlackClock "0:00:18"]

1. e4 {[%clk 0:03:00]}  e5 {[%clk 0:02:56]} 2. Nf3 {[%clk 0:03:00]}  d6 {[%clk 0:02:56]} 3. d4 {[%clk 0:03:00]}  exd4 {[%clk 0:02:57]} 4. Nxd4 {[%clk 0:03:01]}  Nf6 {[%clk 0:02:57]} 5. Nc3 {[%clk 0:03:01]}  Be7 {[%clk 0:02:57]} 6. Be2 {[%clk 0:03:01]}  O-O {[%clk 0:02:57]} 7. O-O {[%clk 0:03:01]}  Re8 {[%clk 0:02:57]} 8. Re1 {[%clk 0:02:54]}  Bf8 {[%clk 0:02:54]} 9. Bf1 {[%clk 0:02:54]}  Nbd7 {[%clk 0:02:54]} 10. Bf4 {[%clk 0:02:49]}  Nc5 {[%clk 0:02:42]} 11. f3 {[%clk 0:02:49]}  Ne6 {[%clk 0:02:40]} 12. Be3 {[%clk 0:02:47]}  Nxd4 {[%clk 0:02:38]} 13. Qxd4 {[%clk 0:02:47]}  Be6 {[%clk 0:02:38]} 14. Rad1 {[%clk 0:02:47]}  Nd7 {[%clk 0:02:32]} 15. a3 {[%clk 0:02:44]}  a6 {[%clk 0:02:26]} 16. Qd2 {[%clk 0:02:42]}  Ne5 {[%clk 0:02:04]} 17. b3 {[%clk 0:02:37]}  Qf6 {[%clk 0:01:39]} 18. Ne2 {[%clk 0:02:32]}  Nc6 {[%clk 0:01:33]} 19. Nf4 {[%clk 0:02:19]}  Bd7 {[%clk 0:01:30]} 20. Nd5 {[%clk 0:02:18]}  Qd8 {[%clk 0:01:30]} 21. Bg5 {[%clk 0:02:17]}  f6 {[%clk 0:01:30]} 22. Be3 {[%clk 0:02:16]}  Be6 {[%clk 0:01:29]} 23. Bf2 {[%clk 0:02:16]}  Bf7 {[%clk 0:01:29]} 24. c4 {[%clk 0:02:15]}  b6 {[%clk 0:01:27]} 25. b4 {[%clk 0:02:12]}  a5 {[%clk 0:01:27]} 26. Qc3 {[%clk 0:02:08]}  axb4 {[%clk 0:01:26]} 27. axb4 {[%clk 0:02:09]}  Ne7 {[%clk 0:01:18]} 28. Ne3 {[%clk 0:02:01]}  Qc8 {[%clk 0:01:07]} 29. Nc2 {[%clk 0:02:01]}  Qb7 {[%clk 0:01:03]} 30. Nd4 {[%clk 0:01:58]}  Red8 {[%clk 0:01:00]} 31. Nb5 {[%clk 0:01:50]}  Nc6 {[%clk 0:00:58]} 32. Qb2 {[%clk 0:01:35]}  Ra4 {[%clk 0:00:57]} 33. Ra1 {[%clk 0:01:31]}  Rda8 {[%clk 0:00:51]} 34. Rxa4 {[%clk 0:01:30]}  Rxa4 {[%clk 0:00:52]} 35. Ra1 {[%clk 0:01:29]}  Rxa1 {[%clk 0:00:51]} 36. Qxa1 {[%clk 0:01:29]}  Nxb4 {[%clk 0:00:52]} 37. Qa4 {[%clk 0:01:23]}  Na6 {[%clk 0:00:49]} 38. Nc3 {[%clk 0:01:22]}  Nc5 {[%clk 0:00:48]} 39. Qc2 {[%clk 0:01:19]}  Qc6 {[%clk 0:00:46]} 40. h4 {[%clk 0:01:17]}  Be7 {[%clk 0:00:43]} 41. Qa2 {[%clk 0:01:14]}  Kf8 {[%clk 0:00:42]} 42. Qa7 {[%clk 0:01:12]}  Qd7 {[%clk 0:00:41]} 43. Qa1 {[%clk 0:01:03]}  Bd8 {[%clk 0:00:40]} 44. Nd5 {[%clk 0:01:02]}  c6 {[%clk 0:00:36]} 45. Nc3 {[%clk 0:01:00]}  Qb7 {[%clk 0:00:35]} 46. Be2 {[%clk 0:00:54]}  Bc7 {[%clk 0:00:35]} 47. Qb1 {[%clk 0:00:51]}  Qa7 {[%clk 0:00:34]} 48. e5 {[%clk 0:00:45]}  dxe5 {[%clk 0:00:32]} 49. Qxh7 {[%clk 0:00:45]}  Qa1+ {[%clk 0:00:29]} 50. Nd1 {[%clk 0:00:46]}  Ne6 {[%clk 0:00:26]} 51. Qc2 {[%clk 0:00:28]}  Nd4 {[%clk 0:00:25]} 52. Bxd4 {[%clk 0:00:28]}  Qxd4+ {[%clk 0:00:26]} 53. Nf2 {[%clk 0:00:28]}  Bd6 {[%clk 0:00:23]} 54. Qd3 {[%clk 0:00:22]}  Bc5 {[%clk 0:00:23]} 55. Qxd4 {[%clk 0:00:22]}  Bxd4 {[%clk 0:00:24]} 56. Kf1 {[%clk 0:00:23]}  Bxf2 {[%clk 0:00:24]} 57. Kxf2 {[%clk 0:00:24]}  Ke7 {[%clk 0:00:24]} 58. Ke3 {[%clk 0:00:23]}  Kd6 {[%clk 0:00:24]} 59. f4 {[%clk 0:00:23]}  exf4+ {[%clk 0:00:23]} 60. Kxf4 {[%clk 0:00:24]}  Kc5 {[%clk 0:00:24]} 61. Kf5 {[%clk 0:00:23]}  Kd4 {[%clk 0:00:20]} 62. g4 {[%clk 0:00:23]}  Kc5 {[%clk 0:00:18]} 63. h5 {[%clk 0:00:23]}  b5 {[%clk 0:00:17]} 64. cxb5 {[%clk 0:00:23]}  cxb5 {[%clk 0:00:18]} 65. Bxb5 {[%clk 0:00:21]}  Kxb5 {[%clk 0:00:17]} 66. h6 {[%clk 0:00:21]}  gxh6 {[%clk 0:00:18]} 67. Kxf6 {[%clk 0:00:22]}  Bd5 {[%clk 0:00:18]} 68. Kg6 {[%clk 0:00:22]}  Bf3 {[%clk 0:00:18]} 69. Kxh6 {[%clk 0:00:22]}  Bxg4 {[%clk 0:00:18]} 1/2-1/2

[Event "January 9 Early 2024"]
[Site "https://www.chess.com"]
[Date "2024.01.11"]
[Round "8"]
[White "Pogorelskikh, Sofia"]
[Black "Pandey Srishti"]
[Result "0-1"]
[Board "195"]
[TimeControl "180+1"]
[WhiteFideId "44164548"]
[BlackFideId "35093290"]
[WhiteElo "2265"]
[BlackElo "2456"]
[WhiteTeam "SRB"]
[BlackTeam "IND"]
[WhiteClock "0:00:01"]
[BlackClock "0:00:49"]

1. e4 {[%clk 0:03:00]}  e5 {[%clk 0:02:59]} 2. Nf3 {[%clk 0:02:59]}  Nc6 {[%clk 0:02:59]} 3. Nc3 {[%clk 0:02:57]}  Nf6 {[%clk 0:02:59]} 4. d4 {[%clk 0:02:54]}  exd4 {[%clk 0:03:00]} 5. Nxd4 {[%clk 0:02:55]}  Bb4 {[%clk 0:03:00]} 6. Nxc6 {[%clk 0:02:46]}  bxc6 {[%clk 0:03:01]} 7. Bd3 {[%clk 0:02:45]}  d5 {[%clk 0:03:01]} 8. exd5 {[%clk 0:02:44]}  O-O {[%clk 0:03:01]} 9. O-O {[%clk 0:02:43]}  Bg4 {[%clk 0:03:00]} 10. f3 {[%clk 0:02:05]}  Bh5 {[%clk 0:02:58]} 11. dxc6 {[%clk 0:02:03]}  Qd4+ {[%clk 0:02:56]} 12. Kh1 {[%clk 0:02:01]}  Bxc3 {[%clk 0:02:56]} 13. bxc3 {[%clk 0:01:58]}  Qxc3 {[%clk 0:02:56]} 14. Bg5 {[%clk 0:00:57]}  Qxc6 {[%clk 0:02:51]} 15. Qe1 {[%clk 0:00:51]}  Bg6 {[%clk 0:02:48]} 16. Bxg6 {[%clk 0:00:44]}  hxg6 {[%clk 0:02:47]} 17. Qh4 {[%clk 0:00:42]}  Nd5 {[%clk 0:02:41]} 18. c4 {[%clk 0:00:39]}  Nb6 {[%clk 0:02:36]} 19. Rac1 {[%clk 0:00:34]}  Rfe8 {[%clk 0:02:35]} 20. c5 {[%clk 0:00:29]}  Nd5 {[%clk 0:02:32]} 21. Qc4 {[%clk 0:00:25]}  Rab8 {[%clk 0:02:28]} 22. h3 {[%clk 0:00:24]}  Rb4 {[%clk 0:02:25]} 23. Qc2 {[%clk 0:00:24]}  Reb8 {[%clk 0:02:23]} 24. Rfe1 {[%clk 0:00:23]}  Rb2 {[%clk 0:02:21]} 25. Qe4 {[%clk 0:00:19]}  Nb4 {[%clk 0:02:01]} 26. Rb1 {[%clk 0:00:11]}  Qxe4 {[%clk 0:01:50]} 27. fxe4 {[%clk 0:00:11]}  Nd3 {[%clk 0:01:46]} 28. Rxb2 {[%clk 0:00:11]}  Rxb2 {[%clk 0:01:47]} 29. Re3 {[%clk 0:00:06]}  Nxc5 {[%clk 0:01:46]} 30. Bf4 {[%clk 0:00:03]}  Ne6 {[%clk 0:01:45]} 31. Bg3 {[%clk 0:00:03]}  Rxa2 {[%clk 0:01:45]} 32. Rc3 {[%clk 0:00:03]}  c5 {[%clk 0:01:43]} 33. Kh2 {[%clk 0:00:02]}  a5 {[%clk 0:01:40]} 34. Bd6 {[%clk 0:00:03]}  Re2 {[%clk 0:01:38]} 35. Bxc5 {[%clk 0:00:03]}  Rxe4 {[%clk 0:01:38]} 36. Bd6 {[%clk 0:00:03]}  a4 {[%clk 0:01:37]} 37. Bg3 {[%clk 0:00:03]}  Rb4 {[%clk 0:01:32]} 38. Rc8+ {[%clk 0:00:03]}  Kh7 {[%clk 0:01:31]} 39. Ra8 {[%clk 0:00:03]}  Nd4 {[%clk 0:01:27]} 40. Ra7 {[%clk 0:00:03]}  f6 {[%clk 0:01:26]} 41. Bd6 {[%clk 0:00:02]}  Rc4 {[%clk 0:01:23]} 42. Bg3 {[%clk 0:00:02]}  g5 {[%clk 0:01:22]} 43. h4 {[%clk 0:00:02]}  gxh4 {[%clk 0:01:18]} 44. Bxh4 {[%clk 0:00:01]}  Kg6 {[%clk 0:01:16]} 45. Bg3 {[%clk 0:00:01]}  Nb5 {[%clk 0:01:14]} 46. Ra6 {[%clk 0:00:02]}  a3 {[%clk 0:01:12]} 47. Ra5 {[%clk 0:00:02]}  Rb4 {[%clk 0:01:11]} 48. Ra6 {[%clk 0:00:02]}  Rb2 {[%clk 0:01:09]} 49. Ra5 {[%clk 0:00:02]}  a2 {[%clk 0:01:05]} 50. Bf4 {[%clk 0:00:02]}  Nc3 {[%clk 0:01:01]} 51. Bc1 {[%clk 0:00:01]}  Rb1 {[%clk 0:01:01]} 52. Bd2 {[%clk 0:00:01]}  a1=Q {[%clk 0:00:52]} 53. Rxa1 {[%clk 0:00:01]}  Rxa1 {[%clk 0:00:53]} 54. Bxc3 {[%clk 0:00:02]}  Ra2 {[%clk 0:00:53]} 55. Be1 {[%clk 0:00:02]}  Kf5 {[%clk 0:00:53]} 56. Bg3 {[%clk 0:00:03]}  g5 {[%clk 0:00:53]} 57. Bd6 {[%clk 0:00:03]}  Kg4 {[%clk 0:00:54]} 58. Bc7 {[%clk 0:00:02]}  f5 {[%clk 0:00:54]} 59. Bd6 {[%clk 0:00:02]}  f4 {[%clk 0:00:54]} 60. Kg1 {[%clk 0:00:03]}  Kg3 {[%clk 0:00:53]} 61. Be5 {[%clk 0:00:02]}  g4 {[%clk 0:00:51]} 62. Bd4 {[%clk 0:00:02]}  Rc2 {[%clk 0:00:49]} 63. Bf2+ {[%clk 0:00:01]}  Rxf2 {[%clk 0:00:49]} 64. Kh1 {[%clk 0:00:01]}  Rf1# {[%clk 0:00:49]} 0-1

[Event "January 9 Early 2024"]
[Site "https://www.chess.com"]
[Date "2024.01.11"]
[Round "8"]
[White "Ambartsumova, Karina"]
[Black "Hrebenshchykova, Yelyzaveta"]
[Result "0-1"]
[Board "196"]
[TimeControl "180+1"]
[WhiteFideId "4166299"]
[BlackFideId "14159899"]
[WhiteElo "2590"]
[BlackElo "2500"]
[WhiteTeam "RUS"]
[BlackTeam "UKR"]
[WhiteClock "0:00:11"]
[BlackClock "0:00:14"]

1. d4 {[%clk 0:03:00]}  Nf6 {[%clk 0:02:57]} 2. c4 {[%clk 0:03:00]}  g6 {[%clk 0:02:54]} 3. Nc3 {[%clk 0:02:59]}  Bg7 {[%clk 0:02:55]} 4. g3 {[%clk 0:02:59]}  d5 {[%clk 0:02:49]} 5. cxd5 {[%clk 0:02:55]}  Nxd5 {[%clk 0:02:49]} 6. Bg2 {[%clk 0:02:55]}  Nb6 {[%clk 0:02:49]} 7. Nf3 {[%clk 0:02:53]}  O-O {[%clk 0:02:49]} 8. O-O {[%clk 0:02:51]}  Nc6 {[%clk 0:02:48]} 9. e3 {[%clk 0:02:52]}  Re8 {[%clk 0:02:47]} 10. Nh4 {[%clk 0:02:50]}  e5 {[%clk 0:02:40]} 11. d5 {[%clk 0:02:48]}  Na5 {[%clk 0:02:38]} 12. f4 {[%clk 0:02:38]}  exf4 {[%clk 0:02:31]} 13. exf4 {[%clk 0:02:34]}  Nac4 {[%clk 0:02:29]} 14. Qd3 {[%clk 0:02:23]}  Bf6 {[%clk 0:02:20]} 15. b3 {[%clk 0:02:10]}  Nd6 {[%clk 0:02:20]} 16. Bb2 {[%clk 0:02:06]}  Nf5 {[%clk 0:02:10]} 17. Nf3 {[%clk 0:01:54]}  Ne3 {[%clk 0:02:10]} 18. Rfe1 {[%clk 0:01:42]}  Nxg2 {[%clk 0:01:58]} 19. Rxe8+ {[%clk 0:01:37]}  Qxe8 {[%clk 0:01:57]} 20. Kxg2 {[%clk 0:01:38]}  Bf5 {[%clk 0:01:58]} 21. Qd2 {[%clk 0:01:38]}  Rd8 {[%clk 0:01:54]} 22. Re1 {[%clk 0:01:32]}  Qf8 {[%clk 0:01:54]} 23. Ne5 {[%clk 0:01:17]}  c6 {[%clk 0:01:51]} 24. g4 {[%clk 0:00:58]}  Be6 {[%clk 0:01:45]} 25. Ne4 {[%clk 0:00:43]}  Bxd5 {[%clk 0:01:33]} 26. Qc3 {[%clk 0:00:24]}  Bxe4+ {[%clk 0:01:29]} 27. Rxe4 {[%clk 0:00:25]}  Nd5 {[%clk 0:01:30]} 28. Qc2 {[%clk 0:00:19]}  Bg7 {[%clk 0:01:27]} 29. Qf2 {[%clk 0:00:17]}  Re8 {[%clk 0:01:20]} 30. Nd7 {[%clk 0:00:15]}  Rxe4 {[%clk 0:01:07]} 31. Nxf8 {[%clk 0:00:15]}  Rxf4 {[%clk 0:01:04]} 32. Qd2 {[%clk 0:00:13]}  Bxf8 {[%clk 0:01:02]} 33. h3 {[%clk 0:00:12]}  Bc5 {[%clk 0:01:00]} 34. Be5 {[%clk 0:00:11]}  Rf2+ {[%clk 0:01:00]} 35. Qxf2 {[%clk 0:00:10]}  Bxf2 {[%clk 0:01:00]} 36. Kxf2 {[%clk 0:00:11]}  f6 {[%clk 0:01:01]} 37. Bd4 {[%clk 0:00:11]}  a6 {[%clk 0:01:00]} 38. Kf3 {[%clk 0:00:12]}  Kf7 {[%clk 0:01:00]} 39. Ke4 {[%clk 0:00:12]}  Ke6 {[%clk 0:01:01]} 40. Bc5 {[%clk 0:00:12]}  b5 {[%clk 0:00:59]} 41. Bd4 {[%clk 0:00:10]}  f5+ {[%clk 0:00:58]} 42. gxf5+ {[%clk 0:00:11]}  gxf5+ {[%clk 0:00:59]} 43. Kf3 {[%clk 0:00:12]}  Nb4 {[%clk 0:00:55]} 44. a3 {[%clk 0:00:12]}  Nc2 {[%clk 0:00:49]} 45. Bb2 {[%clk 0:00:12]}  c5 {[%clk 0:00:49]} 46. Kf4 {[%clk 0:00:10]}  Ne1 {[%clk 0:00:41]} 47. Kg5 {[%clk 0:00:10]}  Nd3 {[%clk 0:00:40]} 48. Bc3 {[%clk 0:00:10]}  f4 {[%clk 0:00:37]} 49. Kg4 {[%clk 0:00:10]}  Kd5 {[%clk 0:00:37]} 50. Kf3 {[%clk 0:00:10]}  b4 {[%clk 0:00:30]} 51. axb4 {[%clk 0:00:10]}  cxb4 {[%clk 0:00:31]} 52. Bg7 {[%clk 0:00:10]}  Nc5 {[%clk 0:00:28]} 53. Bf8 {[%clk 0:00:09]}  a5 {[%clk 0:00:28]} 54. Kxf4 {[%clk 0:00:08]}  Nxb3 {[%clk 0:00:28]} 55. Kg5 {[%clk 0:00:08]}  Kc4 {[%clk 0:00:27]} 56. Kh6 {[%clk 0:00:08]}  a4 {[%clk 0:00:27]} 57. Kxh7 {[%clk 0:00:08]}  a3 {[%clk 0:00:28]} 58. Bg7 {[%clk 0:00:08]}  Nd4 {[%clk 0:00:28]} 59. h4 {[%clk 0:00:08]}  a2 {[%clk 0:00:28]} 60. h5 {[%clk 0:00:09]}  a1=Q {[%clk 0:00:28]} 61. h6 {[%clk 0:00:09]}  Qb1+ {[%clk 0:00:28]} 62. Kg8 {[%clk 0:00:10]}  b3 {[%clk 0:00:14]} 63. h7 {[%clk 0:00:10]}  Qxh7+ {[%clk 0:00:14]} 64. Kxh7 {[%clk 0:00:11]}  b2 {[%clk 0:00:14]} 0-1

[Event "January 9 Early 2024"]
[Site "https://www.chess.com"]
[Date "2024.01.11"]
[Round "8"]
[White "Matveeva, Olga"]
[Black "Andreev, Konstantin"]
[Result "0-1"]
[Board "198"]
[TimeControl "180+1"]
[WhiteFideId "24107018"]
[BlackFideId "24239305"]
[WhiteElo "2403"]
[BlackElo "2530"]
[WhiteTeam "RUS"]
[BlackTeam "ITA"]
[WhiteClock "0:00:07"]
[BlackClock "0:00:08"]

1. d4 {[%clk 0:02:59]}  Nf6 {[%clk 0:01:57]} 2. c4 {[%clk 0:02:58]}  e6 {[%clk 0:01:56]} 3. g3 {[%clk 0:02:58]}  d5 {[%clk 0:01:54]} 4. Nf3 {[%clk 0:02:57]}  Bb4+ {[%clk 0:01:53]} 5. Bd2 {[%clk 0:02:57]}  a5 {[%clk 0:01:51]} 6. Bg2 {[%clk 0:02:57]}  O-O {[%clk 0:01:50]} 7. O-O {[%clk 0:02:56]}  Be7 {[%clk 0:01:40]} 8. Qc2 {[%clk 0:02:53]}  c6 {[%clk 0:01:39]} 9. Rd1 {[%clk 0:02:51]}  b6 {[%clk 0:01:35]} 10. Bf4 {[%clk 0:02:48]}  Bb7 {[%clk 0:01:31]} 11. Ne5 {[%clk 0:02:42]}  Nbd7 {[%clk 0:01:27]} 12. cxd5 {[%clk 0:02:33]}  Nxe5 {[%clk 0:01:19]} 13. dxe5 {[%clk 0:02:29]}  Nxd5 {[%clk 0:01:11]} 14. Nc3 {[%clk 0:02:10]}  Qb8 {[%clk 0:01:08]} 15. Ne4 {[%clk 0:02:07]}  Rd8 {[%clk 0:01:02]} 16. Nd6 {[%clk 0:02:02]}  Bxd6 {[%clk 0:01:00]} 17. exd6 {[%clk 0:02:03]}  Nxf4 {[%clk 0:01:00]} 18. gxf4 {[%clk 0:02:01]}  Rxd6 {[%clk 0:01:01]} 19. e3 {[%clk 0:01:54]}  Rxd1+ {[%clk 0:00:56]} 20. Rxd1 {[%clk 0:01:52]}  c5 {[%clk 0:00:57]} 21. Qd2 {[%clk 0:01:43]}  Bxg2 {[%clk 0:00:56]} 22. Kxg2 {[%clk 0:01:44]}  Qb7+ {[%clk 0:00:55]} 23. Kg3 {[%clk 0:01:44]}  h6 {[%clk 0:00:55]} 24. Qd7 {[%clk 0:01:42]}  Ra7 {[%clk 0:00:54]} 25. Qe8+ {[%clk 0:01:38]}  Kh7 {[%clk 0:00:53]} 26. Rd8 {[%clk 0:01:38]}  Kg6 {[%clk 0:00:49]} 27. h4 {[%clk 0:01:34]}  Qe4 {[%clk 0:00:46]} 28. Qb5 {[%clk 0:01:15]}  Rb7 {[%clk 0:00:37]} 29. Rd6 {[%clk 0:01:09]}  Kh5 {[%clk 0:00:26]} 30. Rxb6 {[%clk 0:01:04]}  Rxb6 {[%clk 0:00:26]} 31. Qxb6 {[%clk 0:01:05]}  Qg6+ {[%clk 0:00:26]} 32. Kh2 {[%clk 0:00:59]}  Qf5 {[%clk 0:00:19]} 33. Qxa5 {[%clk 0:00:55]}  Kxh4 {[%clk 0:00:20]} 34. Qd2 {[%clk 0:00:52]}  Qe4 {[%clk 0:00:18]} 35. Qe2 {[%clk 0:00:47]}  g5 {[%clk 0:00:13]} 36. f3 {[%clk 0:00:38]}  Qd5 {[%clk 0:00:13]} 37. e4 {[%clk 0:00:29]}  Qd4 {[%clk 0:00:12]} 38. Qg2 {[%clk 0:00:24]}  Kh5 {[%clk 0:00:10]} 39. Qg4+ {[%clk 0:00:22]}  Kg6 {[%clk 0:00:11]} 40. f5+ {[%clk 0:00:21]}  Kf6 {[%clk 0:00:11]} 41. fxe6 {[%clk 0:00:20]}  fxe6 {[%clk 0:00:12]} 42. Qg2 {[%clk 0:00:17]}  Qe3 {[%clk 0:00:10]} 43. Qc2 {[%clk 0:00:17]}  Ke5 {[%clk 0:00:09]} 44. Qc3+ {[%clk 0:00:15]}  Qxc3 {[%clk 0:00:09]} 45. bxc3 {[%clk 0:00:16]}  h5 {[%clk 0:00:09]} 46. a4 {[%clk 0:00:16]}  h4 {[%clk 0:00:08]} 47. a5 {[%clk 0:00:16]}  Kd6 {[%clk 0:00:08]} 48. Kh3 {[%clk 0:00:16]}  e5 {[%clk 0:00:08]} 49. Kg4 {[%clk 0:00:09]}  Kc6 {[%clk 0:00:08]} 50. f4 {[%clk 0:00:07]}  gxf4 {[%clk 0:00:09]} 51. Kxh4 {[%clk 0:00:07]}  Kb5 {[%clk 0:00:08]} 0-1

[Event "January 9 Early 2024"]
[Site "https://www.chess.com"]
[Date "2024.01.11"]
[Round "8"]
[White "Von Buelow, Georg"]
[Black "Reprintsev, Alexander"]
[Result "0-1"]
[Board "199"]
[TimeControl "180+1"]
[WhiteFideId "4620658"]
[BlackFideId "14100541"]
[WhiteElo "2143"]
[BlackElo "2455"]
[WhiteTeam "GER"]
[BlackTeam "UKR"]
[WhiteClock "0:00:01"]
[BlackClock "0:00:18"]

1. e4 {[%clk 0:02:51]}  d5 {[%clk 0:02:43]} 2. exd5 {[%clk 0:02:50]}  Qxd5 {[%clk 0:02:43]} 3. Nc3 {[%clk 0:02:50]}  Qa5 {[%clk 0:02:43]} 4. d4 {[%clk 0:02:49]}  Nf6 {[%clk 0:02:43]} 5. Nf3 {[%clk 0:02:49]}  Nc6 {[%clk 0:02:43]} 6. Bb5 {[%clk 0:02:48]}  Ne4 {[%clk 0:02:42]} 7. O-O {[%clk 0:02:36]}  Nxc3 {[%clk 0:02:40]} 8. Bxc6+ {[%clk 0:02:36]}  bxc6 {[%clk 0:02:40]} 9. bxc3 {[%clk 0:02:36]}  Bf5 {[%clk 0:02:40]} 10. Bd2 {[%clk 0:01:49]}  e6 {[%clk 0:02:39]} 11. c4 {[%clk 0:01:44]}  Qa4 {[%clk 0:02:29]} 12. Ne5 {[%clk 0:01:44]}  Qxc2 {[%clk 0:02:25]} 13. Qxc2 {[%clk 0:01:43]}  Bxc2 {[%clk 0:02:25]} 14. Rfc1 {[%clk 0:01:44]}  Bg6 {[%clk 0:02:20]} 15. Nxc6 {[%clk 0:01:41]}  Ba3 {[%clk 0:02:05]} 16. Re1 {[%clk 0:01:40]}  O-O {[%clk 0:02:04]} 17. Bc3 {[%clk 0:01:30]}  Rfe8 {[%clk 0:01:58]} 18. Ne5 {[%clk 0:01:25]}  Bf5 {[%clk 0:01:43]} 19. g4 {[%clk 0:01:24]}  Bc2 {[%clk 0:01:43]} 20. Re2 {[%clk 0:01:20]}  Ba4 {[%clk 0:01:42]} 21. Rb1 {[%clk 0:01:17]}  f6 {[%clk 0:01:41]} 22. Nd3 {[%clk 0:01:15]}  Kf7 {[%clk 0:01:18]} 23. Bb4 {[%clk 0:01:04]}  Bxb4 {[%clk 0:01:17]} 24. Rxb4 {[%clk 0:01:02]}  Bd1 {[%clk 0:01:16]} 25. Re4 {[%clk 0:00:56]}  Bc2 {[%clk 0:01:00]} 26. Re3 {[%clk 0:00:56]}  Bxd3 {[%clk 0:00:59]} 27. Rxd3 {[%clk 0:00:55]}  Reb8 {[%clk 0:00:59]} 28. Rdb3 {[%clk 0:00:53]}  Rb6 {[%clk 0:00:59]} 29. Kf1 {[%clk 0:00:32]}  Rd8 {[%clk 0:00:57]} 30. c5 {[%clk 0:00:26]}  Ra6 {[%clk 0:00:57]} 31. a4 {[%clk 0:00:25]}  e5 {[%clk 0:00:55]} 32. dxe5 {[%clk 0:00:21]}  fxe5 {[%clk 0:00:55]} 33. Rb7 {[%clk 0:00:19]}  Rd7 {[%clk 0:00:54]} 34. R3b4 {[%clk 0:00:19]}  Rc6 {[%clk 0:00:50]} 35. Rxa7 {[%clk 0:00:18]}  Rxc5 {[%clk 0:00:50]} 36. Kg2 {[%clk 0:00:18]}  Ke6 {[%clk 0:00:47]} 37. h3 {[%clk 0:00:14]}  Rc2 {[%clk 0:00:41]} 38. Ra6+ {[%clk 0:00:11]}  c6 {[%clk 0:00:39]} 39. Rb3 {[%clk 0:00:10]}  Rf7 {[%clk 0:00:36]} 40. Rf3 {[%clk 0:00:09]}  Rxf3 {[%clk 0:00:37]} 41. Kxf3 {[%clk 0:00:10]}  Rc3+ {[%clk 0:00:37]} 42. Ke2 {[%clk 0:00:09]}  Kd5 {[%clk 0:00:36]} 43. f3 {[%clk 0:00:09]}  e4 {[%clk 0:00:34]} 44. fxe4+ {[%clk 0:00:08]}  Kxe4 {[%clk 0:00:34]} 45. a5 {[%clk 0:00:09]}  Rc2+ {[%clk 0:00:29]} 46. Kd1 {[%clk 0:00:08]}  Rc5 {[%clk 0:00:28]} 47. Ra7 {[%clk 0:00:07]}  Kd3 {[%clk 0:00:28]} 48. a6 {[%clk 0:00:05]}  Ra5 {[%clk 0:00:28]} 49. Kc1 {[%clk 0:00:05]}  Kc3 {[%clk 0:00:28]} 50. Kb1 {[%clk 0:00:05]}  g5 {[%clk 0:00:27]} 51. Rxh7 {[%clk 0:00:04]}  Rxa6 {[%clk 0:00:28]} 52. Rg7 {[%clk 0:00:04]}  Ra5 {[%clk 0:00:28]} 53. Rg6 {[%clk 0:00:04]}  Rb5+ {[%clk 0:00:27]} 54. Kc1 {[%clk 0:00:04]}  Rc5 {[%clk 0:00:28]} 55. Kd1 {[%clk 0:00:02]}  Kd3 {[%clk 0:00:28]} 56. Rd6+ {[%clk 0:00:01]}  Ke3 {[%clk 0:00:28]} 57. Rf6 {[%clk 0:00:01]}  Rd5+ {[%clk 0:00:22]} 58. Kc2 {[%clk 0:00:02]}  Rc5+ {[%clk 0:00:18]} 59. Kd1 {[%clk 0:00:01]}  Ke4 {[%clk 0:00:19]} 60. Kd2 {[%clk 0:00:01]}  Rd5+ {[%clk 0:00:18]} 0-1

[Event "January 9 Early 2024"]
[Site "https://www.chess.com"]
[Date "2024.01.11"]
[Round "8"]
[White "Burmakin, Evgeniy"]
[Black "Tharushi, T H D Niklesha"]
[Result "1/2-1/2"]
[Board "204"]
[TimeControl "180+1"]
[WhiteFideId "4163729"]
[BlackFideId "9918264"]
[WhiteElo "2403"]
[BlackElo "2256"]
[WhiteTeam "RUS"]
[BlackTeam "SRI"]
[WhiteClock "0:00:07"]
[BlackClock "0:00:23"]

1. e4 {[%clk 0:03:00]}  c6 {[%clk 0:02:56]} 2. Nc3 {[%clk 0:03:00]}  d5 {[%clk 0:02:56]} 3. Nf3 {[%clk 0:03:01]}  dxe4 {[%clk 0:02:49]} 4. Nxe4 {[%clk 0:03:02]}  Nf6 {[%clk 0:02:49]} 5. Qe2 {[%clk 0:03:01]}  Nxe4 {[%clk 0:02:44]} 6. Qxe4 {[%clk 0:03:02]}  Nd7 {[%clk 0:02:45]} 7. Bc4 {[%clk 0:03:02]}  Nf6 {[%clk 0:02:44]} 8. Ne5 {[%clk 0:03:02]}  e6 {[%clk 0:02:40]} 9. Qe2 {[%clk 0:03:02]}  Bd6 {[%clk 0:02:40]} 10. d4 {[%clk 0:03:01]}  Nd5 {[%clk 0:02:29]} 11. Bd2 {[%clk 0:02:48]}  Qc7 {[%clk 0:02:27]} 12. O-O-O {[%clk 0:02:39]}  a6 {[%clk 0:02:25]} 13. Kb1 {[%clk 0:02:25]}  b5 {[%clk 0:02:24]} 14. Bd3 {[%clk 0:02:25]}  Bb7 {[%clk 0:02:22]} 15. Rhe1 {[%clk 0:02:22]}  c5 {[%clk 0:02:19]} 16. dxc5 {[%clk 0:02:17]}  Bxc5 {[%clk 0:02:19]} 17. f4 {[%clk 0:02:03]}  O-O-O {[%clk 0:02:03]} 18. g3 {[%clk 0:01:52]}  Kb8 {[%clk 0:01:58]} 19. c4 {[%clk 0:01:48]}  Nb4 {[%clk 0:01:44]} 20. Be4 {[%clk 0:01:26]}  f6 {[%clk 0:01:35]} 21. Nf3 {[%clk 0:01:11]}  Bxe4+ {[%clk 0:01:03]} 22. Qxe4 {[%clk 0:01:12]}  Nd3 {[%clk 0:01:03]} 23. Ba5 {[%clk 0:01:00]}  Qxa5 {[%clk 0:01:00]} 24. Rxd3 {[%clk 0:01:00]}  Rxd3 {[%clk 0:01:00]} 25. Qxd3 {[%clk 0:01:01]}  Rd8 {[%clk 0:01:00]} 26. Qb3 {[%clk 0:00:54]}  Qb6 {[%clk 0:00:45]} 27. cxb5 {[%clk 0:00:52]}  Qb7 {[%clk 0:00:41]} 28. bxa6 {[%clk 0:00:46]}  Qxb3 {[%clk 0:00:41]} 29. axb3 {[%clk 0:00:46]}  Rd6 {[%clk 0:00:42]} 30. Rc1 {[%clk 0:00:32]}  Ba7 {[%clk 0:00:38]} 31. Rc4 {[%clk 0:00:24]}  Rxa6 {[%clk 0:00:37]} 32. Kc2 {[%clk 0:00:17]}  Rd6 {[%clk 0:00:34]} 33. Nd2 {[%clk 0:00:15]}  Kb7 {[%clk 0:00:23]} 34. Ne4 {[%clk 0:00:15]}  Rc6 {[%clk 0:00:23]} 35. Kc3 {[%clk 0:00:11]}  Bg1 {[%clk 0:00:20]} 36. h3 {[%clk 0:00:11]}  Bh2 {[%clk 0:00:20]} 37. Rxc6 {[%clk 0:00:05]}  Kxc6 {[%clk 0:00:20]} 38. Kc4 {[%clk 0:00:05]}  f5 {[%clk 0:00:19]} 39. Ng5 {[%clk 0:00:05]}  Bxg3 {[%clk 0:00:20]} 40. Nxe6 {[%clk 0:00:05]}  g6 {[%clk 0:00:20]} 41. b4 {[%clk 0:00:04]}  Kd6 {[%clk 0:00:21]} 42. Nf8 {[%clk 0:00:05]}  Bxf4 {[%clk 0:00:19]} 43. Nxh7 {[%clk 0:00:05]}  Be5 {[%clk 0:00:20]} 44. Ng5 {[%clk 0:00:04]}  Bxb2 {[%clk 0:00:20]} 45. b5 {[%clk 0:00:03]}  Bf6 {[%clk 0:00:20]} 46. Nf3 {[%clk 0:00:03]}  Kc7 {[%clk 0:00:20]} 47. Kd5 {[%clk 0:00:03]}  Kb6 {[%clk 0:00:20]} 48. Ke6 {[%clk 0:00:03]}  Bb2 {[%clk 0:00:20]} 49. Kf7 {[%clk 0:00:03]}  Kxb5 {[%clk 0:00:20]} 50. Kxg6 {[%clk 0:00:04]}  f4 {[%clk 0:00:21]} 51. h4 {[%clk 0:00:04]}  Kc5 {[%clk 0:00:20]} 52. h5 {[%clk 0:00:04]}  Kd5 {[%clk 0:00:20]} 53. h6 {[%clk 0:00:04]}  Ke4 {[%clk 0:00:21]} 54. Ng5+ {[%clk 0:00:04]}  Ke3 {[%clk 0:00:21]} 55. Kf5 {[%clk 0:00:03]}  f3 {[%clk 0:00:22]} 56. Nxf3 {[%clk 0:00:02]}  Kxf3 {[%clk 0:00:22]} 57. Kg6 {[%clk 0:00:03]}  Bh8 {[%clk 0:00:23]} 58. Kh7 {[%clk 0:00:03]}  Ba1 {[%clk 0:00:23]} 59. Kg8 {[%clk 0:00:04]}  Be5 {[%clk 0:00:23]} 60. h7 {[%clk 0:00:05]}  Ba1 {[%clk 0:00:23]} 61. Kf7 {[%clk 0:00:05]}  Bb2 {[%clk 0:00:22]} 62. Kg8 {[%clk 0:00:06]}  Ba1 {[%clk 0:00:23]} 63. h8=Q {[%clk 0:00:07]}  Bxh8 {[%clk 0:00:23]} 1/2-1/2